Workbook

Sheet NettenBrüte
C2: Netten brüte ücret hesaplaması | E2: 20
C3: 7349 Sayılı Kanunla ve 319 Seri Nolu GVK Tebliğ ile Uyumlu | E3: 24
C4: Veriler
C5: Ücret türünü seçiniz | E5: 1
E6: 1
C7: Çalışan zorunlu BES kapsamında mı? | E7: 2
E8: 1
C9: Cari aya devreden kümülatif Asgari Ücret Gelir Vergisi matrahı | E9: 0
C10: Cari aya devreden kümülatif Gelir Vergisi matrahı | E10: 0
C11: Hesaplama yaptırılacak BAŞLANGIÇ AYINI seçiniz | E11: 1
C12: Beş (5) Puanlık SGP İşveren İndiriminden Yararlanma Durumu | E12: 2
E14: Ocak | F14: Şubat | G14: Mart | H14: Nisan | I14: Mayıs | J14: Haziran | K14: Temmuz | L14: Ağustos | M14: Eylül | N14: Ekim | O14: Kasım | P14: Aralık | Q14: TOPLAM | R14: Aylık Ortalama
C15: Çalışanın (tam) Aylık NET ÜCRETİ (BES hariç) | R15: =AVERAGE(E15:P15) -> 
C16: Ay içinde çalıştığı gün sayısı | E16: 31 | F16: 28 | G16: 31 | H16: 30 | I16: 31 | J16: 30 | K16: 31 | L16: 31 | M16: 30 | N16: 31 | O16: 30 | P16: 31 | Q16: 365 | R16: =AVERAGE(E16:P16) -> 30.41666667
C17: Çalıştığı günlere isabet eden NET ÜCRETİ | R17: =AVERAGE(E17:P17) -> 
C19: Zorunlu Bireysel Emeklilik Primi (BES) (-) | R19: =AVERAGE(E19:P19) -> 
C20: Sosyal güvenlik primi İŞÇİ payı (-) | R20: =AVERAGE(E20:P20) -> 
C21: İşsizlik sigortası İŞÇİ payı (-) | R21: =AVERAGE(E21:P21) -> 
C22: Damga vergisi (-) | R22: =AVERAGE(E22:P22) -> 
C23: Gelir vergisi (-) | R23: =AVERAGE(E23:P23) -> 
C24: Çalışanının BRÜT ÜCRETİ | R24: =AVERAGE(E24:P24) -> 
C25: İşsizlik sigortası İŞVEREN payı | R25: =AVERAGE(E25:P25) -> 
C26: Sosyal güvenlik primi İŞVEREN payı | R26: =AVERAGE(E26:P26) -> 
C27: Çalışanının İŞVERENE TOPLAM MALİYETİ | R27: =AVERAGE(E27:P27) -> 
C29: ÖDENECEK NET ÜCRET | R29: =AVERAGE(E29:P29) -> 
C31: Hesaplama detay bilgileri
C32: Bu ayın SGP matrahı
C33: 5 Puanlık SG Primi tutarı
C34: Cari aya devreden kümülatif Gelir Vergisi matrahı
C35: Cari ayın Gelir Vergisi matrahı
C36: Birikmiş Gelir Vergisi Matrahı
C41: Cari aya Devreden Asgari Ücretin Gelir Vergisi Matrahı
C42: Cari ayın Asgari Ücretin Gelir Vergisi Matrahı
C43: Birikimli Asgari Ücretin Gelir Vergisi Matrahı
C45: Cari Ayın Hesaplanan Gelir Vergisi
C46: Sakatlık indirimi gelir vergisi farkı
C47: Sadece Asgari Ücretin Gelir Vergisi
C48: İstisnadan Sonra Kalan (Devlete Ödenecek) Gelir Vergisi
C50: Damga Vergisinden İstisna Asgari Ücret Tutarı
C51: Hesaplanan Normal Damga Vergisi
C52: İstisna Damga Vergisi (Asgari Ücret Üzerinden)
C53: İstisnadan Sonra Kalan (Devlete Ödenecek) Damga Vergisi

Sheet BrüttenNete
C2: Brütten nete ücret hesaplaması | E2: 20
C3: 7349 Sayılı Kanunla ve 319 Seri Nolu GVK Tebliğ ile Uyumlu | E3: 24
C4: Veriler
C5: Ücret türünü seçiniz | E5: 1
C7: Çalışan zorunlu BES kapsamıda mı? | E7: 2
C9: Cari aya devreden kümülatif Asgari Ücret Gelir Vergisi matrahı | E9: 0
C10: Cari aya devreden kümülatif Gelir Vergisi matrahı | E10: 0
C11: Hesaplama yaptırılacak BAŞLANGIÇ AYINI seçiniz | E11: 1
C12: Beş (5) Puanlık SGP İşveren İndiriminden Yararlanma Durumu | E12: 2
E14: Ocak | F14: Şubat | G14: Mart | H14: Nisan | I14: Mayıs | J14: Haziran | K14: Temmuz | L14: Ağustos | M14: Eylül | N14: Ekim | O14: Kasım | P14: Aralık | Q14: TOPLAM | R14: Aylık Ortalama
C15: Çalışanın (tam) Aylık BRÜT ÜCRETİ | E15: 30000 | Q15: 30000 | R15: =AVERAGE(E15:P15) -> 30000
C16: Ay içinde çalıştığı gün sayısı | E16: =31 -> 31 | F16: =28 -> 28 | G16: =31 -> 31 | H16: =30 -> 30 | I16: =31 -> 31 | J16: =30 -> 30 | K16: =31 -> 31 | L16: =31 -> 31 | M16: =30 -> 30 | N16: =31 -> 31 | O16: =30 -> 30 | P16: =31 -> 31 | Q16: 31 | R16: =AVERAGE(E16:P16) -> 30.41666667
C17: Çalıştığı günlere isabet eden BRÜT ÜCRETİ | Q17: 30000 | R17: =AVERAGE(E17:P17) -> 
C19: Zorunlu Bireysel Emeklilik Primi (BES) (-)
C20: Sosyal güvenlik primi İŞÇİ payı (-) | Q20: 4200 | R20: =AVERAGE(E20:P20) -> 
C21: İşsizlik sigortası İŞÇİ payı (-) | Q21: 300 | R21: =AVERAGE(E21:P21) -> 
C22: Damga vergisi (-) | Q22: 75.881025 | R22: =AVERAGE(E22:P22) -> 
C23: Gelir vergisi (-) | Q23: 1274.68125 | R23: =AVERAGE(E23:P23) -> 
C24: Çalışanının NET ÜCRETİ | Q24: 24149.43772 | R24: =AVERAGE(E24:P24) -> 
C25: İşsizlik sigortası İŞVEREN payı | Q25: 600 | R25: =AVERAGE(E25:P25) -> 
C26: Sosyal güvenlik primi İŞVEREN payı | Q26: 6150 | R26: =AVERAGE(E26:P26) -> 
C27: Çalışanının İŞVERENE TOPLAM MALİYETİ | Q27: 36750 | R27: =AVERAGE(E27:P27) -> 
C29: ÖDENECEK NET ÜCRET | Q29: 24149.43772 | R29: =AVERAGE(E29:P29) -> 
C31: Hesaplama detay bilgileri
C32: Bu ayın SGP matrahı
C33: 5 Puanlık SG Primi tutarı
C34: Cari aya devreden kümülatif Gelir Vergisi matrahı
C35: Cari ayın Gelir Vergisi matrahı
C36: Birikmiş Gelir Vergisi Matrahı
C41: Cari aya Devreden Asgari Ücretin Gelir Vergisi Matrahı
C42: Cari ayın Asgari Ücretin Gelir Vergisi Matrahı
C43: Birikimli Asgari Ücretin Gelir Vergisi Matrahı
C45: Cari Ayın Hesaplanan Gelir Vergisi
C46: Sakatlık indirimi gelir vergisi farkı
C47: Sadece Asgari Ücretin Gelir Vergisi
C48: İstisnadan Sonra Kalan (Devlete Ödenecek) Gelir Vergisi
C50: Damga Vergisinden İstisna Asgari Ücret Tutarı
C51: Hesaplanan Normal Damga Vergisi
C52: İstisna Damga Vergisi (Asgari Ücret Üzerinden)
C53: İstisnadan Sonra Kalan (Devlete Ödenecek) Damga Vergisi

Sheet Parametre (hidden)
C1: Netten Brüte - Brütten Nete Ücret Hesaplaması | RQ1: Netten Brüte
RQ2: Netten Brüte Ücret
C3: HESAPLAMA PARAMETRELERİ | E3: 2024 yılı | RQ3: Netten Brüte Ücret Hesaplaması
J4: DEĞİŞTİRİLEMEZ BİLGİLER | RQ4: Netten Brüte Maaş
C5: Cari Yıl Gelir Vergisi Tarifesi | J5: Çalışan Tipi | N5: İtibari hizmet süreleri | Q5: Aylar | R5: 5 Puanlık SGP İndiriminden Yararlanma Durumu | U5: Evet | RQ5: Netten Brüte Maaş Hesaplaması
C6: DİLİMLER | D6: Dilim Tutar | E6: Dilim Oran | J6: Normal | N6: Yok | Q6: Ocak | R6: Evet, yararlanıyoruz | U6: Hayır | RQ6: Netden Brüte
C7: Birinci Dilim | D7: 110000 | E7: 0.15 | J7: Emekli | N7: 60 Gün | Q7: Şubat | R7: Hayır, yararlanmıyoruz | RQ7: NettenBrüte
C8: İkinci Dilim | D8: 230000 | E8: 0.2 | J8: Huzur Hakkı | N8: 90 Gün | Q8: Mart | RQ8: netten brüte
C9: Üçüncü Dilim | D9: 870000 | E9: 0.27 | J9: Çalışanın medeni durumu | N9: 180 Gün | Q9: Nisan | RQ9: netden brüte
C10: Dördüncü Dilim | D10: 3000000 | E10: 0.35 | J10: Bekar / Boşanmış / Evli (Eş Çalışıyor) | Q10: Mayıs | RQ10: Netten Brüte maaş nasıl hesaplanır
C11: Beşinci Dilim | D11: =D10+0.01 -> 3000000.01 | E11: 0.4 | J11: Evli (Eş Çalışmıyor) | Q11: Haziran | RQ11: Netten Brüte ücret nasıl hesaplanır
C12: Damga Vergisi Oranı | Q12: Temmuz | RQ12: netten brute
C13: Güncel Ücret Damga Vergisi Oranı | E13: 0.00759 | Q13: Ağustos | RQ13: netden brute
J14: Çalışanın çocuk sayısı | Q14: Eylül
C15: SSK Prim Tabanı | E15: Günlük | F15: Aylık | J15: Yok | Q15: Ekim
C16: 1.1.2024-30.06.2024 İÇİN | E16: 666.75 | F16: =ROUND((E16*30),2) -> 20002.5 | J16: 1 | Q16: Kasım
C17: 1.7.2024-31.12.2024 İÇİN | E17: 666.75 | F17: =ROUND((E17*30),2) -> 20002.5 | J17: 2 | Q17: Aralık
J18: 3
C19: SSK Prim Tavanı | E19: Günlük | F19: Aylık | J19: 4
C20: 1.1.2024-30.06.2024 İÇİN | E20: =ROUND((E16*7.5),2) -> 5000.63 | F20: =E20*30 -> 150018.9 | J20: 5
C21: 1.7.2024-31.12.2024 İÇİN | E21: =ROUND((E17*7.5),2) -> 5000.63 | F21: =E21*30 -> 150018.9 | J21: 6 | RQ21: Brütten Nete
J22: 7 | RQ22: Brütten Nete Maaş
C23: Asgari Ücret | E23: Günlük | F23: Aylık | J23: 8 | RQ23: Brütten Nete Ücret
C24: 1.1.2024-30.06.2024 İÇİN | E24: =+E16 -> 666.75 | F24: =E24*30 -> 20002.5 | J24: 9 | RQ24: Brütten Nete Ücret Hesaplaması
C25: 1.7.2024-31.12.2024 İÇİN | E25: =+E17 -> 666.75 | F25: =E25*30 -> 20002.5 | J25: 10 | RQ25: Brütten Nete Maaş Hesaplaması
J26: 11 | RQ26: Brütten Nete ücret nasıl Hesaplanır
C27: SSK Priminden İstisna Yemek, Çocuk ve Aile Zammı Tutarları | J27: 12 | RQ27: Brütten Nete Maaş nasıl Hesaplanır
C28: Ödemenin Nevi | D28: İstisnanın Tespit Şekli | E28: 1.1.2009-30.06.2009 İÇİN | F28: 1.7.2009-31.12.2009 İÇİN
C29: Yemek Parası (Günlük) | D29: 16 yaşından büyükler için her yıl belirlenen günlük asgari ücretin % 6'sı | E29: =ROUND(E24*0.06,2) -> 40.01 | F29: =ROUND(E25*0.06,2) -> 40.01 | G29: x Fiilen çalışılan gün sayısı
C30: Çoçuk Zammı | D30: 16 yaşından büyükler için belirlenen aylık asgari ücretin % 2'si (en fazla 2 Çocuk için) | E30: =ROUND(F24*0.02,2) -> 400.05 | F30: =ROUND(F25*0.02,2) -> 400.05 | G30: X Çoçuk sayısı (en fazla 2 çocuk için)
C31: Aile Zammı | D31: 16 yaşından büyükler için belirlenen aylık asgari ücretin %10'u | E31: =ROUND(F24*0.1,2) -> 2000.25 | F31: =ROUND(F25*0.1,2) -> 2000.25
C35: Gelir Vergisinden İstisna Yemek ve Çocuk Paraları (Aylık)
C36: Ödemenin Nevi | D36: İstisnanın Tespit Şekli | E36: 1.1.2009-30.06.2009 İÇİN | F36: 1.7.2009-31.12.2009 İÇİN
C37: Yemek Parası (Günlük) | D37: YDO'na göre | E37: 10.8 | F37: 10.8
C38: Çoçuk Yardımı ( 6 yaşından büyük çocuklar için) | D38: En fazla 2 çocuk için.Devletçe verilen tutarı aşamaz | E38: 13.38 | F38: 13.98
C39: Çoçuk Yardımı (0- 6 yaş çocuklar için) | E39: =(E38*2)-0.01 -> 26.75 | F39: =F38*2 -> 27.96
C44: Sigorta Prim Oranları | D44: Normal Çalışanlar | RQ44: brütten nete
C45: İşçi-İşveren | D45: Kısa vadeli sigorta kolları | E45: Malululük, yaşlılık ve ölüm | F45: Genel sağlık sigortası | G45: İşsizlik | H45: TOPLAM | I45: TOPLAM | RQ45: brütden nete
C46: İşçi prim oranları | D46: 0 | E46: 9 | F46: 5 | G46: 1 | H46: =SUM(D46:G46) -> 15 | RQ46: brüttennete
H47: İNDİRİMSİZ | I47: İNDİRİMLİ
C48: İşveren prim oranları | D48: 2 | E48: 11 | F48: 7.5 | G48: 2 | H48: =SUM(D48:G48) -> 22.5 | I48: =H48-5 -> 17.5
C62: Sigorta Prim Oranları | D62: Emekli Çalışanlar
C63: İşçi-İşveren | D63: Kısa vadeli sigorta kolları | E63: Sosyal Güvenlik Destekleme Primi | F63: TOPLAM | G63: TOPLAM
C64: İşçi prim oranları | D64: 0 | E64: 7.5 | F64: =SUM(D64:E64) -> 7.5
F65: İNDİRİMSİZ | G65: İNDİRİMLİ
C66: İşveren prim oranları | D66: 2 | E66: 22.5 | F66: =SUM(D66:E66) -> 24.5 | G66: =F66-5 -> 19.5
C79: Sakatlık deceleri
C80: Dereceler | D80: İndirim Tutarı
B81: 1 | C81: Yok | D81: 0
B82: 2 | C82: 1.Derece Sakat | D82: 6900
B83: 3 | C83: 2.Derece Sakat | D83: 4000
B84: 4 | C84: 3.Derece Sakat | D84: 1700
C97: Zorunlu BES oranı
C98: Herkes için Zorunlu BES oranı | D98: 3
